[Event "Titled Tuesday Blitz May 31 Late 2022"]
[White "Martin Carmona, Gaston Manuel"]
[Black "Mendoza Criollo, Carlos David"]
[WhiteFideId "22284567"]
[BlackFideId "3618323"]
[WhiteElo "2162"]
[BlackElo "1715"]
[Result "1-0"]
[Round "06"]
[TimeControl "180+1"]
[Date "2022.06.01"]
[WhiteClock "0:00:06"]
[BlackClock "0:00:04"]

1. d4 {[%clk 0:03:00]}  g6 {[%clk 0:02:59]} 2. c4 {[%clk 0:03:00]}  Bg7 {[%clk 0:02:59]} 3. Nf3 {[%clk 0:03:01]}  d6 {[%clk 0:03:00]} 4. g3 {[%clk 0:03:00]}  Nf6 {[%clk 0:02:57]} 5. Bg2 {[%clk 0:03:01]}  O-O {[%clk 0:02:58]} 6. Nc3 {[%clk 0:03:01]}  c6 {[%clk 0:02:58]} 7. O-O {[%clk 0:03:01]}  Nbd7 {[%clk 0:02:58]} 8. Qc2 {[%clk 0:03:00]}  e5 {[%clk 0:02:57]} 9. Rd1 {[%clk 0:03:01]}  exd4 {[%clk 0:02:57]} 10. Nxd4 {[%clk 0:03:02]}  Re8 {[%clk 0:02:57]} 11. e4 {[%clk 0:03:02]}  Nc5 {[%clk 0:02:54]} 12. Be3 {[%clk 0:02:58]}  Qe7 {[%clk 0:02:50]} 13. f3 {[%clk 0:02:56]}  a5 {[%clk 0:02:50]} 14. Bf4 {[%clk 0:02:46]}  Nfd7 {[%clk 0:02:49]} 15. b3 {[%clk 0:02:39]}  Ne5 {[%clk 0:02:46]} 16. Be3 {[%clk 0:02:32]}  Ne6 {[%clk 0:02:30]} 17. Nce2 {[%clk 0:02:28]}  h5 {[%clk 0:02:19]} 18. h3 {[%clk 0:02:04]}  g5 {[%clk 0:02:12]} 19. Qd2 {[%clk 0:02:01]}  g4 {[%clk 0:02:05]} 20. Nf5 {[%clk 0:02:00]}  Qf6 {[%clk 0:01:59]} 21. hxg4 {[%clk 0:01:56]}  hxg4 {[%clk 0:01:57]} 22. Nxd6 {[%clk 0:01:23]}  Rd8 {[%clk 0:01:40]} 23. f4 {[%clk 0:01:23]}  Nf3+ {[%clk 0:01:36]} 24. Bxf3 {[%clk 0:01:23]}  gxf3 {[%clk 0:01:37]} 25. e5 {[%clk 0:01:24]}  Qg6 {[%clk 0:01:22]} 26. Nc3 {[%clk 0:01:20]}  Qxg3+ {[%clk 0:01:20]} 27. Kf1 {[%clk 0:01:21]}  Rxd6 {[%clk 0:01:15]} 28. Qxd6 {[%clk 0:01:10]}  Nxf4 {[%clk 0:00:56]} 29. Bf2 {[%clk 0:00:53]}  Bh3+ {[%clk 0:00:45]} 30. Ke1 {[%clk 0:00:50]}  Ng2+ {[%clk 0:00:45]} 31. Kd2 {[%clk 0:00:48]}  Qxf2+ {[%clk 0:00:46]} 32. Kc1 {[%clk 0:00:47]}  Qe3+ {[%clk 0:00:38]} 33. Qd2 {[%clk 0:00:40]}  Bxe5 {[%clk 0:00:22]} 34. Qxe3 {[%clk 0:00:24]}  Nxe3 {[%clk 0:00:23]} 35. Rg1+ {[%clk 0:00:25]}  Kf8 {[%clk 0:00:20]} 36. Kd2 {[%clk 0:00:26]}  Bxc3+ {[%clk 0:00:18]} 37. Kxc3 {[%clk 0:00:18]}  f2 {[%clk 0:00:18]} 38. Rg3 {[%clk 0:00:17]}  f1=Q {[%clk 0:00:17]} 39. Rxf1 {[%clk 0:00:18]}  Bxf1 {[%clk 0:00:12]} 40. Rxe3 {[%clk 0:00:18]}  Bg2 {[%clk 0:00:10]} 41. Rg3 {[%clk 0:00:18]}  Be4 {[%clk 0:00:10]} 42. Kd4 {[%clk 0:00:17]}  f5 {[%clk 0:00:09]} 43. Kc5 {[%clk 0:00:17]}  Ke7 {[%clk 0:00:08]} 44. Rg7+ {[%clk 0:00:15]}  Ke6 {[%clk 0:00:09]} 45. Rxb7 {[%clk 0:00:15]}  a4 {[%clk 0:00:09]} 46. b4 {[%clk 0:00:15]}  f4 {[%clk 0:00:08]} 47. Kd4 {[%clk 0:00:16]}  Bg2 {[%clk 0:00:08]} 48. Rg7 {[%clk 0:00:14]}  f3 {[%clk 0:00:08]} 49. Ke3 {[%clk 0:00:15]}  Rb8 {[%clk 0:00:07]} 50. a3 {[%clk 0:00:15]}  c5 {[%clk 0:00:07]} 51. b5 {[%clk 0:00:14]}  Ke5 {[%clk 0:00:07]} 52. Rg5+ {[%clk 0:00:14]}  Kd6 {[%clk 0:00:06]} 53. Rg6+ {[%clk 0:00:14]}  Ke7 {[%clk 0:00:05]} 54. Rc6 {[%clk 0:00:13]}  Kd7 {[%clk 0:00:05]} 55. Rxc5 {[%clk 0:00:13]}  Re8+ {[%clk 0:00:06]} 56. Kf2 {[%clk 0:00:11]}  Re2+ {[%clk 0:00:06]} 57. Kg3 {[%clk 0:00:11]}  f2 {[%clk 0:00:07]} 58. Kxg2 {[%clk 0:00:11]}  Ra2 {[%clk 0:00:04]} 59. Rd5+ {[%clk 0:00:05]}  Ke6 {[%clk 0:00:04]} 60. b6 {[%clk 0:00:04]}  Rxa3 {[%clk 0:00:04]} 61. Rb5 {[%clk 0:00:04]}  Rf3 {[%clk 0:00:02]} 62. Kf1 {[%clk 0:00:05]}  Ra3 {[%clk 0:00:02]} 63. b7 {[%clk 0:00:05]}  Ra1+ {[%clk 0:00:02]} 64. Kxf2 {[%clk 0:00:05]}  Ra2+ {[%clk 0:00:03]} 65. Ke3 {[%clk 0:00:05]}  Ra3+ {[%clk 0:00:03]} 66. Kd4 {[%clk 0:00:06]}  Rb3 {[%clk 0:00:04]} 67. Rxb3 {[%clk 0:00:05]}  axb3 {[%clk 0:00:04]} 68. Kc3 {[%clk 0:00:06]} 1-0


[Site "https://www.chess.com"]

[Event "Titled Tuesday Blitz May 31 Late 2022"]
[White "Moroni, Luca Jr"]
[Black "Terry, Renato"]
[WhiteFideId "865834"]
[BlackFideId "3803457"]
[WhiteElo "2573"]
[BlackElo "2577"]
[Result "1-0"]
[Round "06"]
[TimeControl "180+1"]
[Date "2022.05.31"]
[WhiteClock "0:00:30"]
[BlackClock "0:00:03"]

1. d4 {[%clk 0:03:00]}  d5 {[%clk 0:02:56]} 2. Bf4 {[%clk 0:03:00]}  Nf6 {[%clk 0:02:55]} 3. e3 {[%clk 0:03:00]}  c5 {[%clk 0:02:55]} 4. Nf3 {[%clk 0:03:01]}  Nc6 {[%clk 0:02:56]} 5. Nbd2 {[%clk 0:03:00]}  Be6 {[%clk 0:02:54]} 6. c3 {[%clk 0:02:55]}  Qb6 {[%clk 0:02:50]} 7. Qb3 {[%clk 0:02:49]}  c4 {[%clk 0:02:48]} 8. Qxb6 {[%clk 0:02:49]}  axb6 {[%clk 0:02:49]} 9. a3 {[%clk 0:02:49]}  b5 {[%clk 0:02:48]} 10. O-O-O {[%clk 0:02:38]}  Ng4 {[%clk 0:02:46]} 11. Bg3 {[%clk 0:02:36]}  f5 {[%clk 0:02:43]} 12. h3 {[%clk 0:02:32]}  Nf6 {[%clk 0:02:44]} 13. Ne5 {[%clk 0:02:32]}  g6 {[%clk 0:02:32]} 14. Nxc6 {[%clk 0:02:31]}  bxc6 {[%clk 0:02:32]} 15. Be5 {[%clk 0:02:31]}  Bh6 {[%clk 0:02:26]} 16. Be2 {[%clk 0:02:29]}  O-O {[%clk 0:02:26]} 17. f4 {[%clk 0:02:27]}  Nd7 {[%clk 0:02:22]} 18. g4 {[%clk 0:02:21]}  Nxe5 {[%clk 0:02:05]} 19. dxe5 {[%clk 0:02:21]}  c5 {[%clk 0:01:38]} 20. Nf3 {[%clk 0:02:21]}  Rfb8 {[%clk 0:01:24]} 21. g5 {[%clk 0:02:18]}  Bg7 {[%clk 0:01:20]} 22. Kc2 {[%clk 0:02:15]}  Bf7 {[%clk 0:01:16]} 23. h4 {[%clk 0:02:11]}  e6 {[%clk 0:01:16]} 24. h5 {[%clk 0:02:10]}  Be8 {[%clk 0:01:14]} 25. hxg6 {[%clk 0:02:05]}  hxg6 {[%clk 0:01:14]} 26. Nd2 {[%clk 0:01:42]}  b4 {[%clk 0:01:04]} 27. axb4 {[%clk 0:01:25]}  Ba4+ {[%clk 0:00:49]} 28. b3 {[%clk 0:01:25]}  Bxb3+ {[%clk 0:00:46]} 29. Nxb3 {[%clk 0:01:24]}  Ra2+ {[%clk 0:00:46]} 30. Kc1 {[%clk 0:01:08]}  cxb3 {[%clk 0:00:47]} 31. Bd3 {[%clk 0:01:04]}  cxb4 {[%clk 0:00:31]} 32. cxb4 {[%clk 0:01:04]}  Bf8 {[%clk 0:00:28]} 33. Rh3 {[%clk 0:00:34]}  Bxb4 {[%clk 0:00:06]} 34. Rdh1 {[%clk 0:00:33]}  Rc8+ {[%clk 0:00:01]} 35. Kb1 {[%clk 0:00:33]}  Bf8 {[%clk 0:00:02]} 36. Rh8+ {[%clk 0:00:31]}  Kf7 {[%clk 0:00:02]} 37. R1h7+ {[%clk 0:00:30]}  Ke8 {[%clk 0:00:03]} 38. Bb5+ {[%clk 0:00:30]} 1-0


[Site "https://www.chess.com"]

[Event "Titled Tuesday Blitz May 31 Late 2022"]
[White "Niemann, Hans Moke"]
[Black "Pakleza, Zbigniew"]
[WhiteFideId "2093596"]
[BlackFideId "1119290"]
[WhiteElo "2632"]
[BlackElo "2467"]
[Result "0-1"]
[Round "06"]
[TimeControl "180+1"]
[Date "2022.05.31"]
[WhiteClock "0:00:07"]
[BlackClock "0:00:04"]

1. d4 {[%clk 0:03:00]}  d5 {[%clk 0:02:59]} 2. c4 {[%clk 0:03:00]}  c6 {[%clk 0:02:59]} 3. Nf3 {[%clk 0:03:01]}  Nf6 {[%clk 0:03:00]} 4. e3 {[%clk 0:03:01]}  Bf5 {[%clk 0:03:00]} 5. Nc3 {[%clk 0:03:01]}  e6 {[%clk 0:03:00]} 6. Nh4 {[%clk 0:03:02]}  Be4 {[%clk 0:03:00]} 7. f3 {[%clk 0:03:02]}  Bg6 {[%clk 0:03:01]} 8. Qb3 {[%clk 0:03:03]}  Qb6 {[%clk 0:03:01]} 9. Nxg6 {[%clk 0:02:58]}  hxg6 {[%clk 0:03:01]} 10. Bd2 {[%clk 0:02:59]}  Nbd7 {[%clk 0:03:01]} 11. O-O-O {[%clk 0:02:59]}  Qxb3 {[%clk 0:02:54]} 12. axb3 {[%clk 0:03:00]}  Bd6 {[%clk 0:02:51]} 13. Bd3 {[%clk 0:02:58]}  O-O-O {[%clk 0:02:50]} 14. h3 {[%clk 0:02:54]}  a6 {[%clk 0:02:49]} 15. f4 {[%clk 0:02:45]}  c5 {[%clk 0:02:38]} 16. g4 {[%clk 0:02:40]}  Kb8 {[%clk 0:02:20]} 17. Kb1 {[%clk 0:02:32]}  Bc7 {[%clk 0:02:05]} 18. Rdf1 {[%clk 0:02:21]}  cxd4 {[%clk 0:01:35]} 19. exd4 {[%clk 0:02:20]}  Nb6 {[%clk 0:01:36]} 20. c5 {[%clk 0:02:20]}  Nc8 {[%clk 0:01:36]} 21. b4 {[%clk 0:02:17]}  Ne7 {[%clk 0:01:34]} 22. b5 {[%clk 0:02:13]}  axb5 {[%clk 0:01:30]} 23. Nxb5 {[%clk 0:02:14]}  Nc6 {[%clk 0:01:21]} 24. b4 {[%clk 0:02:14]}  Ne4 {[%clk 0:01:18]} 25. Be1 {[%clk 0:02:15]}  f5 {[%clk 0:01:00]} 26. gxf5 {[%clk 0:02:10]}  gxf5 {[%clk 0:00:58]} 27. h4 {[%clk 0:02:09]}  Rh7 {[%clk 0:00:42]} 28. Rhg1 {[%clk 0:02:06]}  Rdh8 {[%clk 0:00:35]} 29. Rg6 {[%clk 0:02:04]}  Bd8 {[%clk 0:00:32]} 30. Rh1 {[%clk 0:01:51]}  Bf6 {[%clk 0:00:30]} 31. Kc2 {[%clk 0:01:44]}  Rh6 {[%clk 0:00:23]} 32. Rhg1 {[%clk 0:01:33]}  R6h7 {[%clk 0:00:19]} 33. R1g2 {[%clk 0:01:30]}  Kc8 {[%clk 0:00:14]} 34. Bxe4 {[%clk 0:01:21]}  fxe4 {[%clk 0:00:15]} 35. Kc3 {[%clk 0:01:19]}  Kd7 {[%clk 0:00:14]} 36. Bf2 {[%clk 0:01:20]}  Ra8 {[%clk 0:00:13]} 37. Kb3 {[%clk 0:01:15]}  Ra1 {[%clk 0:00:12]} 38. h5 {[%clk 0:01:09]}  Rb1+ {[%clk 0:00:11]} 39. Kc3 {[%clk 0:00:59]}  Rxb4 {[%clk 0:00:12]} 40. h6 {[%clk 0:00:59]}  Rc4+ {[%clk 0:00:05]} 41. Kd2 {[%clk 0:00:53]}  Rxh6 {[%clk 0:00:06]} 42. Rxg7+ {[%clk 0:00:50]}  Bxg7 {[%clk 0:00:07]} 43. Rxg7+ {[%clk 0:00:49]}  Kd8 {[%clk 0:00:07]} 44. Nd6 {[%clk 0:00:47]}  Rh2 {[%clk 0:00:06]} 45. Nxc4 {[%clk 0:00:37]}  Rxf2+ {[%clk 0:00:06]} 46. Ke1 {[%clk 0:00:36]}  Rxf4 {[%clk 0:00:06]} 47. Nd6 {[%clk 0:00:34]}  Nxd4 {[%clk 0:00:06]} 48. Nxb7+ {[%clk 0:00:34]}  Ke8 {[%clk 0:00:06]} 49. Nd6+ {[%clk 0:00:35]}  Kf8 {[%clk 0:00:07]} 50. Rc7 {[%clk 0:00:35]}  e3 {[%clk 0:00:06]} 51. Rc8+ {[%clk 0:00:31]}  Kg7 {[%clk 0:00:05]} 52. Ne8+ {[%clk 0:00:17]}  Kg6 {[%clk 0:00:05]} 53. Rc7 {[%clk 0:00:18]}  Rh4 {[%clk 0:00:04]} 54. Rg7+ {[%clk 0:00:15]}  Kf5 {[%clk 0:00:05]} 55. Nd6+ {[%clk 0:00:15]}  Ke5 {[%clk 0:00:03]} 56. Kf1 {[%clk 0:00:06]}  e2+ {[%clk 0:00:02]} 57. Kf2 {[%clk 0:00:06]}  Rf4+ {[%clk 0:00:03]} 58. Ke1 {[%clk 0:00:05]}  Rf1+ {[%clk 0:00:03]} 59. Kd2 {[%clk 0:00:06]}  e1=Q+ {[%clk 0:00:04]} 60. Kd3 {[%clk 0:00:07]}  Rf3# {[%clk 0:00:04]} 0-1


[Site "https://www.chess.com"]

[Event "Titled Tuesday Blitz May 31 Late 2022"]
[White "Pershin, Denis"]
[Black "Kollars, Dmitrij"]
[WhiteFideId "24165506"]
[BlackFideId "12909572"]
[WhiteElo "2275"]
[BlackElo "2584"]
[Result "0-1"]
[Round "06"]
[TimeControl "180+1"]
[Date "2022.05.31"]
[WhiteClock "0:00:01"]
[BlackClock "0:00:26"]

1. d4 {[%clk 0:03:00]}  Nf6 {[%clk 0:03:00]} 2. Nc3 {[%clk 0:02:59]}  d5 {[%clk 0:03:00]} 3. Bf4 {[%clk 0:02:58]}  c5 {[%clk 0:03:00]} 4. e3 {[%clk 0:02:57]}  cxd4 {[%clk 0:02:58]} 5. exd4 {[%clk 0:02:58]}  a6 {[%clk 0:02:56]} 6. Nf3 {[%clk 0:02:58]}  Nc6 {[%clk 0:02:57]} 7. Ne5 {[%clk 0:02:58]}  Bd7 {[%clk 0:02:58]} 8. g4 {[%clk 0:02:58]}  e6 {[%clk 0:02:55]} 9. g5 {[%clk 0:02:58]}  Nxe5 {[%clk 0:02:54]} 10. Bxe5 {[%clk 0:02:58]}  Ng8 {[%clk 0:02:55]} 11. h4 {[%clk 0:02:58]}  Ne7 {[%clk 0:02:55]} 12. Qd2 {[%clk 0:02:53]}  Nc6 {[%clk 0:02:52]} 13. Bg3 {[%clk 0:02:53]}  Rc8 {[%clk 0:02:50]} 14. a3 {[%clk 0:02:50]}  Qa5 {[%clk 0:02:32]} 15. Rb1 {[%clk 0:02:15]}  g6 {[%clk 0:02:22]} 16. Ne2 {[%clk 0:02:02]}  Qxd2+ {[%clk 0:02:20]} 17. Kxd2 {[%clk 0:02:03]}  Na5 {[%clk 0:02:20]} 18. Nf4 {[%clk 0:01:58]}  h6 {[%clk 0:02:16]} 19. Bd3 {[%clk 0:01:57]}  Nc4+ {[%clk 0:02:15]} 20. Bxc4 {[%clk 0:01:56]}  Rxc4 {[%clk 0:02:16]} 21. c3 {[%clk 0:01:54]}  Be7 {[%clk 0:02:16]} 22. h5 {[%clk 0:00:55]}  Bxg5 {[%clk 0:02:10]} 23. hxg6 {[%clk 0:00:55]}  fxg6 {[%clk 0:02:11]} 24. Kd3 {[%clk 0:00:54]}  Kf7 {[%clk 0:02:05]} 25. Ke2 {[%clk 0:00:49]}  Rcc8 {[%clk 0:01:29]} 26. Nh3 {[%clk 0:00:44]}  Bf6 {[%clk 0:01:25]} 27. Ng1 {[%clk 0:00:41]}  Ba4 {[%clk 0:01:13]} 28. Rc1 {[%clk 0:00:39]}  Bxd4 {[%clk 0:01:06]} 29. Nf3 {[%clk 0:00:32]}  Bf6 {[%clk 0:01:06]} 30. Kd2 {[%clk 0:00:25]}  g5 {[%clk 0:00:55]} 31. Rce1 {[%clk 0:00:24]}  h5 {[%clk 0:00:48]} 32. Ne5+ {[%clk 0:00:14]}  Kg7 {[%clk 0:00:48]} 33. f4 {[%clk 0:00:11]}  g4 {[%clk 0:00:42]} 34. Bf2 {[%clk 0:00:12]}  Be8 {[%clk 0:00:38]} 35. Nd3 {[%clk 0:00:10]}  Bf7 {[%clk 0:00:36]} 36. Bh4 {[%clk 0:00:11]}  Bxh4 {[%clk 0:00:32]} 37. Rxh4 {[%clk 0:00:12]}  Kf6 {[%clk 0:00:33]} 38. Ke2 {[%clk 0:00:12]}  Rc4 {[%clk 0:00:32]} 39. Kf2 {[%clk 0:00:11]}  Bg6 {[%clk 0:00:31]} 40. Ne5 {[%clk 0:00:11]}  Rxf4+ {[%clk 0:00:28]} 41. Kg3 {[%clk 0:00:10]}  Re4 {[%clk 0:00:26]} 42. Nxg6 {[%clk 0:00:02]}  Kxg6 {[%clk 0:00:25]} 43. Rxe4 {[%clk 0:00:02]}  dxe4 {[%clk 0:00:26]} 44. Kf4 {[%clk 0:00:03]}  Rf8+ {[%clk 0:00:25]} 45. Kxe4 {[%clk 0:00:03]}  Kg5 {[%clk 0:00:26]} 46. Rh1 {[%clk 0:00:02]}  g3 {[%clk 0:00:26]} 47. Rf1 {[%clk 0:00:01]} 0-1


[Site "https://www.chess.com"]

[Event "Titled Tuesday Blitz May 31 Late 2022"]
[White "Plazuelo Pascual, Juan"]
[Black "Ladan, Nicholas"]
[WhiteFideId "32059566"]
[BlackFideId "30918855"]
[WhiteElo "2359"]
[BlackElo "2167"]
[Result "1/2-1/2"]
[Round "06"]
[TimeControl "180+1"]
[Date "2022.06.01"]
[WhiteClock "0:00:09"]
[BlackClock "0:00:07"]

1. d4 {[%clk 0:03:00]}  d5 {[%clk 0:03:00]} 2. c4 {[%clk 0:03:01]}  c6 {[%clk 0:03:00]} 3. cxd5 {[%clk 0:03:00]}  cxd5 {[%clk 0:03:01]} 4. Bg5 {[%clk 0:03:00]}  Nc6 {[%clk 0:02:59]} 5. Nc3 {[%clk 0:02:49]}  Nf6 {[%clk 0:02:55]} 6. Bxf6 {[%clk 0:02:49]}  gxf6 {[%clk 0:02:55]} 7. e3 {[%clk 0:02:47]}  Bf5 {[%clk 0:02:55]} 8. g3 {[%clk 0:02:43]}  e6 {[%clk 0:02:54]} 9. Bd3 {[%clk 0:02:38]}  Bxd3 {[%clk 0:02:51]} 10. Qxd3 {[%clk 0:02:39]}  f5 {[%clk 0:02:52]} 11. Nge2 {[%clk 0:02:35]}  Bd6 {[%clk 0:02:49]} 12. O-O {[%clk 0:02:31]}  h5 {[%clk 0:02:48]} 13. h4 {[%clk 0:02:31]}  Rg8 {[%clk 0:02:47]} 14. Kh1 {[%clk 0:02:24]}  Be7 {[%clk 0:02:35]} 15. Kg2 {[%clk 0:02:13]}  a6 {[%clk 0:02:17]} 16. Nf4 {[%clk 0:02:07]}  Bxh4 {[%clk 0:01:48]} 17. Rh1 {[%clk 0:02:02]}  Be7 {[%clk 0:01:47]} 18. Rxh5 {[%clk 0:01:59]}  Qd6 {[%clk 0:01:46]} 19. Rh7 {[%clk 0:01:57]}  Bf6 {[%clk 0:01:36]} 20. Rah1 {[%clk 0:01:47]}  Nxd4 {[%clk 0:01:35]} 21. R1h6 {[%clk 0:01:38]}  Be5 {[%clk 0:01:18]} 22. Ncxd5 {[%clk 0:00:59]}  Bxf4 {[%clk 0:01:18]} 23. Nf6+ {[%clk 0:00:56]}  Ke7 {[%clk 0:01:14]} 24. Nxg8+ {[%clk 0:00:56]}  Rxg8 {[%clk 0:01:15]} 25. Qxd4 {[%clk 0:00:57]}  Qxd4 {[%clk 0:01:07]} 26. exd4 {[%clk 0:00:56]}  Bxh6 {[%clk 0:01:07]} 27. Rxh6 {[%clk 0:00:57]}  Kd6 {[%clk 0:00:57]} 28. Rh7 {[%clk 0:00:55]}  Rf8 {[%clk 0:00:52]} 29. Kf3 {[%clk 0:00:56]}  Kd5 {[%clk 0:00:52]} 30. Ke3 {[%clk 0:00:56]}  b5 {[%clk 0:00:52]} 31. Kd3 {[%clk 0:00:54]}  a5 {[%clk 0:00:51]} 32. b3 {[%clk 0:00:45]}  b4 {[%clk 0:00:51]} 33. Rg7 {[%clk 0:00:44]}  Rc8 {[%clk 0:00:47]} 34. Rxf7 {[%clk 0:00:43]}  Rc3+ {[%clk 0:00:48]} 35. Kd2 {[%clk 0:00:38]}  Kxd4 {[%clk 0:00:47]} 36. Rd7+ {[%clk 0:00:37]}  Ke4 {[%clk 0:00:46]} 37. Re7 {[%clk 0:00:20]}  Rc6 {[%clk 0:00:34]} 38. Ke2 {[%clk 0:00:15]}  Rc2+ {[%clk 0:00:31]} 39. Ke1 {[%clk 0:00:15]}  Rc6 {[%clk 0:00:29]} 40. Ke2 {[%clk 0:00:13]}  Rc2+ {[%clk 0:00:13]} 41. Ke1 {[%clk 0:00:13]}  Kf3 {[%clk 0:00:12]} 42. Rxe6 {[%clk 0:00:12]}  Rxf2 {[%clk 0:00:09]} 43. Re5 {[%clk 0:00:13]}  Kxg3 {[%clk 0:00:09]} 44. Rxa5 {[%clk 0:00:13]}  f4 {[%clk 0:00:08]} 45. a3 {[%clk 0:00:07]}  Rb2 {[%clk 0:00:04]} 46. Rg5+ {[%clk 0:00:05]}  Kf3 {[%clk 0:00:03]} 47. axb4 {[%clk 0:00:05]}  Rxb3 {[%clk 0:00:04]} 48. b5 {[%clk 0:00:05]}  Rb1+ {[%clk 0:00:03]} 49. Kd2 {[%clk 0:00:05]}  Kf2 {[%clk 0:00:03]} 50. Rf5 {[%clk 0:00:05]}  f3 {[%clk 0:00:04]} 51. Kc3 {[%clk 0:00:06]}  Kg2 {[%clk 0:00:03]} 52. Kc4 {[%clk 0:00:06]}  f2 {[%clk 0:00:04]} 53. Kc5 {[%clk 0:00:05]}  f1=Q {[%clk 0:00:04]} 54. Rxf1 {[%clk 0:00:05]}  Kxf1 {[%clk 0:00:05]} 55. b6 {[%clk 0:00:06]}  Ke2 {[%clk 0:00:05]} 56. Kc6 {[%clk 0:00:06]}  Ke3 {[%clk 0:00:06]} 57. b7 {[%clk 0:00:07]}  Ke4 {[%clk 0:00:06]} 58. Kc7 {[%clk 0:00:08]}  Ke5 {[%clk 0:00:07]} 59. b8=Q {[%clk 0:00:08]}  Rxb8 {[%clk 0:00:07]} 60. Kxb8 {[%clk 0:00:09]} 1/2-1/2


[Site "https://www.chess.com"]

[Event "Titled Tuesday Blitz May 31 Late 2022"]
[White "Prabhu, Naveen"]
[Black "Ambartsumova, Karina"]
[WhiteFideId "30939372"]
[BlackFideId "4166299"]
[WhiteElo "2426"]
[BlackElo "2262"]
[Result "0-1"]
[Round "06"]
[TimeControl "180+1"]
[Date "2022.06.01"]
[WhiteClock "0:00:03"]
[BlackClock "0:00:21"]

1. e4 {[%clk 0:02:21]}  c5 {[%clk 0:02:58]} 2. Nf3 {[%clk 0:02:20]}  e6 {[%clk 0:02:58]} 3. d4 {[%clk 0:02:16]}  cxd4 {[%clk 0:02:59]} 4. Nxd4 {[%clk 0:02:17]}  a6 {[%clk 0:02:59]} 5. Nc3 {[%clk 0:02:17]}  b5 {[%clk 0:02:59]} 6. Bd3 {[%clk 0:02:14]}  Qb6 {[%clk 0:03:00]} 7. Be3 {[%clk 0:02:14]}  Bc5 {[%clk 0:02:59]} 8. Nce2 {[%clk 0:02:14]}  Nc6 {[%clk 0:02:59]} 9. c3 {[%clk 0:02:12]}  Nf6 {[%clk 0:02:56]} 10. Qd2 {[%clk 0:02:08]}  d5 {[%clk 0:02:49]} 11. b4 {[%clk 0:01:31]}  Bxd4 {[%clk 0:02:47]} 12. Nxd4 {[%clk 0:01:31]}  Nxd4 {[%clk 0:02:40]} 13. Bxd4 {[%clk 0:01:30]}  Qc6 {[%clk 0:02:40]} 14. Qg5 {[%clk 0:01:24]}  dxe4 {[%clk 0:02:29]} 15. Be2 {[%clk 0:01:07]}  e5 {[%clk 0:02:09]} 16. Bxe5 {[%clk 0:00:57]}  O-O {[%clk 0:02:08]} 17. Bd4 {[%clk 0:00:54]}  h6 {[%clk 0:02:02]} 18. Qg3 {[%clk 0:00:48]}  Bf5 {[%clk 0:02:00]} 19. O-O {[%clk 0:00:46]}  Rfe8 {[%clk 0:01:59]} 20. Rfd1 {[%clk 0:00:43]}  Bg6 {[%clk 0:01:55]} 21. h3 {[%clk 0:00:37]}  Rac8 {[%clk 0:01:53]} 22. Bc5 {[%clk 0:00:34]}  Nh5 {[%clk 0:01:49]} 23. Bxh5 {[%clk 0:00:32]}  Bxh5 {[%clk 0:01:50]} 24. Rd6 {[%clk 0:00:32]}  Qb7 {[%clk 0:01:47]} 25. Rxh6 {[%clk 0:00:31]}  Bg6 {[%clk 0:01:46]} 26. Rh4 {[%clk 0:00:31]}  Qc7 {[%clk 0:01:41]} 27. Qe3 {[%clk 0:00:26]}  Qd8 {[%clk 0:01:37]} 28. g3 {[%clk 0:00:21]}  Qd3 {[%clk 0:01:36]} 29. Qg5 {[%clk 0:00:21]}  Qxc3 {[%clk 0:01:29]} 30. Rd1 {[%clk 0:00:20]}  Qf3 {[%clk 0:01:23]} 31. Re1 {[%clk 0:00:16]}  e3 {[%clk 0:01:21]} 32. Bxe3 {[%clk 0:00:14]}  Be4 {[%clk 0:01:18]} 33. Rxe4 {[%clk 0:00:14]}  Qxe4 {[%clk 0:01:15]} 34. h4 {[%clk 0:00:14]}  Qf3 {[%clk 0:01:13]} 35. h5 {[%clk 0:00:14]}  Re6 {[%clk 0:01:04]} 36. Qh4 {[%clk 0:00:09]}  Kh7 {[%clk 0:00:55]} 37. h6 {[%clk 0:00:09]}  gxh6 {[%clk 0:00:53]} 38. Qd4 {[%clk 0:00:08]}  Rg8 {[%clk 0:00:52]} 39. Rd1 {[%clk 0:00:07]}  Rxg3+ {[%clk 0:00:25]} 40. fxg3 {[%clk 0:00:07]}  Qxg3+ {[%clk 0:00:26]} 41. Kf1 {[%clk 0:00:08]}  Qf3+ {[%clk 0:00:23]} 42. Bf2 {[%clk 0:00:06]}  Qe2+ {[%clk 0:00:20]} 43. Kg2 {[%clk 0:00:07]}  Rg6+ {[%clk 0:00:21]} 44. Kh1 {[%clk 0:00:05]}  Qh5+ {[%clk 0:00:21]} 45. Bh4 {[%clk 0:00:06]}  Qf3+ {[%clk 0:00:21]} 46. Kh2 {[%clk 0:00:03]}  Qg2# {[%clk 0:00:21]} 0-1


[Site "https://www.chess.com"]

[Event "Titled Tuesday Blitz May 31 Late 2022"]
[White "Richter, Nils"]
[Black "Novikova, Galina"]
[WhiteFideId "12990809"]
[BlackFideId "4157095"]
[WhiteElo "2243"]
[BlackElo "1863"]
[Result "1-0"]
[Round "06"]
[TimeControl "180+1"]
[Date "2022.06.01"]
[WhiteClock "0:00:21"]
[BlackClock "0:00:01"]

1. Nf3 {[%clk 0:03:00]}  e6 {[%clk 0:03:00]} 2. b3 {[%clk 0:03:00]}  f5 {[%clk 0:03:00]} 3. Bb2 {[%clk 0:03:01]}  Nf6 {[%clk 0:03:01]} 4. c4 {[%clk 0:02:58]}  Be7 {[%clk 0:03:01]} 5. g3 {[%clk 0:02:59]}  O-O {[%clk 0:03:00]} 6. Bg2 {[%clk 0:02:59]}  d6 {[%clk 0:03:01]} 7. O-O {[%clk 0:02:59]}  e5 {[%clk 0:03:02]} 8. d3 {[%clk 0:02:53]}  Nc6 {[%clk 0:03:02]} 9. Nbd2 {[%clk 0:02:53]}  Qe8 {[%clk 0:03:00]} 10. e4 {[%clk 0:02:52]}  Qh5 {[%clk 0:02:56]} 11. Nh4 {[%clk 0:02:46]}  f4 {[%clk 0:02:46]} 12. Qxh5 {[%clk 0:02:43]}  Nxh5 {[%clk 0:02:47]} 13. Nf5 {[%clk 0:02:40]}  Bf6 {[%clk 0:02:30]} 14. Bf3 {[%clk 0:02:26]}  g6 {[%clk 0:02:30]} 15. Bxh5 {[%clk 0:02:25]}  gxf5 {[%clk 0:02:04]} 16. gxf4 {[%clk 0:02:07]}  exf4 {[%clk 0:01:57]} 17. Bxf6 {[%clk 0:02:05]}  Rxf6 {[%clk 0:01:58]} 18. Kh1 {[%clk 0:01:57]}  Kh8 {[%clk 0:01:36]} 19. Rg1 {[%clk 0:01:53]}  Nb4 {[%clk 0:01:31]} 20. Be2 {[%clk 0:01:48]}  Bd7 {[%clk 0:01:26]} 21. Rg5 {[%clk 0:01:41]}  Rg8 {[%clk 0:01:19]} 22. Rag1 {[%clk 0:01:38]}  Rxg5 {[%clk 0:01:19]} 23. Rxg5 {[%clk 0:01:39]}  Nxa2 {[%clk 0:01:10]} 24. exf5 {[%clk 0:01:29]}  Rxf5 {[%clk 0:00:49]} 25. Rg1 {[%clk 0:01:28]}  Nb4 {[%clk 0:00:45]} 26. Ne4 {[%clk 0:01:22]}  Bc6 {[%clk 0:00:40]} 27. Bg4 {[%clk 0:01:16]}  Rf8 {[%clk 0:00:33]} 28. Be2 {[%clk 0:01:06]}  f3 {[%clk 0:00:33]} 29. Bf1 {[%clk 0:01:06]}  Bxe4 {[%clk 0:00:30]} 30. dxe4 {[%clk 0:01:06]}  Nc2 {[%clk 0:00:22]} 31. Rg5 {[%clk 0:01:01]}  Nd4 {[%clk 0:00:15]} 32. b4 {[%clk 0:00:57]}  b6 {[%clk 0:00:15]} 33. h4 {[%clk 0:00:51]}  Ra8 {[%clk 0:00:13]} 34. Rd5 {[%clk 0:00:47]}  Ne2 {[%clk 0:00:10]} 35. b5 {[%clk 0:00:40]}  a5 {[%clk 0:00:09]} 36. bxa6 {[%clk 0:00:34]}  Rxa6 {[%clk 0:00:10]} 37. Kh2 {[%clk 0:00:35]}  Ra1 {[%clk 0:00:09]} 38. Bh3 {[%clk 0:00:34]}  Nf4 {[%clk 0:00:08]} 39. Rf5 {[%clk 0:00:33]}  Nxh3 {[%clk 0:00:05]} 40. Kxh3 {[%clk 0:00:33]}  Rc1 {[%clk 0:00:06]} 41. Rxf3 {[%clk 0:00:30]}  Rxc4 {[%clk 0:00:06]} 42. Rf7 {[%clk 0:00:30]}  c5 {[%clk 0:00:05]} 43. f3 {[%clk 0:00:27]}  b5 {[%clk 0:00:05]} 44. Kg4 {[%clk 0:00:27]}  b4 {[%clk 0:00:05]} 45. Kf5 {[%clk 0:00:27]}  Kg8 {[%clk 0:00:03]} 46. Rb7 {[%clk 0:00:24]}  Rc3 {[%clk 0:00:02]} 47. f4 {[%clk 0:00:23]}  Kf8 {[%clk 0:00:01]} 48. Ke6 {[%clk 0:00:21]} 1-0


[Site "https://www.chess.com"]